bitfinex/quotes_SOLUSD_20220302
["timestamp","ask_amount","ask_price","bid_price","bid_amount"]
[1646210532235,47.0552,104.38,104.31,14.33904003]
[1646210532636,27.4777,104.42,104.32,112.68504003]
[1646210532836,6.0,104.41,104.33,107.3]
[1646210533039,6.0,104.41,104.33,137.0056819]
[1646210533237,3.831,104.44,104.35,95.76]
[1646210533438,50.36113805,104.45,104.36,113.3]
[1646210533637,50.36113805,104.45,104.36,110.09904003]
[1646210533837,50.36113805,104.45,104.38,110.1259]
[1646210533838,25.86493805,104.45,104.38,110.1259]
[1646210534037,0.11,104.47,104.39,11.54]
[1646210534240,0.11,104.47,104.39,14.33904003]
[1646210534640,0.11,104.47,104.39,11.79]
[1646210535543,0.11,104.47,104.39,26.1565]
[1646210536541,173.6885,104.47,104.39,26.1565]
[1646210536742,173.6885,104.47,104.39,11.54]
[1646210536947,3.83,104.46,104.37,25.9093]
[1646210537148,101.76,104.45,104.37,25.9093]
[1646210537347,159.21,104.45,104.37,25.9093]
[1646210537747,5.37751277,104.44,104.37,25.9093]
[1646210537947,6.0,104.43,104.37,25.9093]
[1646210538150,6.0,104.43,104.37,26.1593]
[1646210539147,6.0,104.43,104.37,121.9193]
[1646210539347,5.37751277,104.44,104.37,28.70834003]
[1646210539947,6.0,104.43,104.37,28.70834003]
[1646210541449,6.0,104.43,104.37,33.70834003]
[1646210541747,6.0,104.43,104.37,33.45834003]
[1646210541954,6.0,104.43,104.37,16.54]
[1646210542148,6.0,104.43,104.37,5.0]
[1646210542551,63.59469125,104.43,104.37,5.0]
[1646210542750,63.45,104.43,104.37,5.0]
[1646210542950,63.45,104.43,104.35,14.372]
[1646210543150,0.16404891,104.42,104.35,14.622]
[1646210543549,6.0,104.43,104.35,14.622]
[1646210544249,159.21,104.43,104.34,11.54]
[1646210545058,173.5838,104.43,104.32,19.08904003]
[1646210545258,57.45,104.41,104.32,2.54904003]
[1646210545458,47.7438622,104.4,104.32,2.54904003]
[1646210546460,47.7438622,104.4,104.33,17.73471087]
[1646210547473,47.7438622,104.4,104.33,17.98471087]
[1646210547974,47.9938622,104.4,104.33,17.98471087]
[1646210548176,47.9938622,104.4,104.33,34.9085509]
[1646210548379,47.9938622,104.4,104.33,46.4485509]
[1646210549372,47.9938622,104.4,104.33,28.71384003]
[1646210549576,143.7538622,104.4,104.33,5.0]
[1646210549775,47.9938622,104.4,104.33,5.0]
[1646210550076,201.2038622,104.4,104.31,28.46584003]
[1646210550276,201.2038622,104.4,104.31,28.71584003]
[1646210550475,201.2038622,104.4,104.31,33.71584003]
[1646210550883,201.2038622,104.4,104.32,7.88422198]
[1646210551083,47.7438622,104.4,104.32,22.51012198]
[1646210551278,41.7438622,104.4,104.32,25.05916201]
[1646210551579,41.7438622,104.4,104.32,36.59916201]
[1646210552383,41.9938622,104.4,104.32,36.59916201]
[1646210552582,6.0,104.39,104.32,36.59916201]
[1646210552780,43.77794593,104.38,104.32,36.59916201]
[1646210552980,6.0,104.37,104.32,41.59916201]
[1646210554081,6.0,104.37,104.32,36.59916201]
[1646210554285,6.0,104.37,104.32,41.59916201]
[1646210555488,103.661,104.4,104.32,33.46494003]
[1646210555687,7.201,104.37,104.32,19.08904003]
[1646210555886,7.201,104.37,104.32,11.54]
[1646210556586,55.63513546,104.36,104.32,11.54]
[1646210557086,55.63513546,104.36,104.32,11.79]
[1646210557285,55.63513546,104.36,104.32,0.25]
[1646210557487,55.63513546,104.36,104.31,63.42708356]
[1646210557686,55.63513546,104.36,104.31,5.0]
[1646210557889,55.63513546,104.36,104.31,7.54904003]
[1646210558087,55.63513546,104.36,104.31,21.92654003]
[1646210559490,55.63513546,104.36,104.32,16.14681748]
[1646210559690,118.2632,104.39,104.32,16.14681748]
[1646210559889,6.0,104.38,104.32,18.69585751]
[1646210560089,6.0,104.38,104.32,23.94585751]
[1646210560492,6.0,104.38,104.32,18.94585751]
[1646210560692,49.67717848,104.37,104.32,18.94585751]
[1646210561296,49.67717848,104.37,104.32,2.79904003]
[1646210562097,6.0,104.36,104.32,2.79904003]
[1646210562294,35.84462965,104.35,104.32,2.79904003]
[1646210563293,3.03219997,104.34,104.32,2.79904003]
[1646210563897,3.03219997,104.34,104.32,17.17494003]
[1646210564095,22.5032,104.39,104.32,17.17494003]
[1646210564395,6.0,104.38,104.33,33.13745789]
[1646210564596,6.0,104.4,104.34,5.0]
[1646210564796,58.36548417,104.39,104.34,55.76102292]
[1646210564995,27.15632396,104.37,104.34,55.76102292]
[1646210565197,27.15632396,104.37,104.34,19.623]
[1646210565517,27.15632396,104.37,104.34,14.623]
[1646210565696,27.15632396,104.37,104.34,0.25]
[1646210565897,27.15632396,104.37,104.33,2.79904003]
[1646210568501,6.0,104.36,104.33,2.79904003]
[1646210568702,57.7813742,104.35,104.33,2.79904003]
[1646210571204,57.7813742,104.35,104.33,2.54904003]
[1646210571407,57.7813742,104.35,104.3,19.3783]
[1646210571608,58.0313742,104.35,104.3,5.0]
[1646210572008,58.0313742,104.35,104.29,2.54904003]
[1646210572205,6.0,104.34,104.29,16.92924003]
[1646210572406,27.74043393,104.33,104.29,16.92924003]
[1646210572707,27.74043393,104.33,104.29,17.17924003]
[1646210573723,6.0,104.32,104.29,17.17924003]
[1646210574124,56.48945355,104.31,104.29,17.17924003]
[1646210576625,56.48945355,104.31,104.29,2.79904003]
[1646210576822,56.48945355,104.31,104.29,0.25]
[1646210577022,56.48945355,104.31,104.27,33.72114003]
[1646210577824,56.48945355,104.31,104.27,33.47114003]
[1646210578224,56.48945355,104.31,104.27,19.3821]
[1646210578426,65.59645355,104.31,104.27,5.0]
[1646210579829,157.045,104.36,104.27,19.383]
[1646210580030,6.0,104.35,104.27,22.18204003]
[1646210580333,6.0,104.35,104.27,32.86411049]
[1646210580536,6.0,104.36,104.27,53.76823505]
[1646210580836,44.52297549,104.35,104.27,53.76823505]
[1646210581135,40.99883264,104.33,104.27,48.76823505]
[1646210581735,40.99883264,104.33,104.28,5.0]
[1646210581932,40.99883264,104.33,104.28,5.25]
[1646210582135,22.718,104.37,104.29,2.54904003]
[1646210582334,22.718,104.37,104.3,11.54]
[1646210582534,22.718,104.37,104.3,25.31507046]
[1646210582734,22.718,104.37,104.31,7.54904003]
[1646210582936,22.718,104.37,104.32,11.54]
[1646210583134,55.03559787,104.36,104.32,14.33904003]
[1646210584535,55.03559787,104.36,104.32,0.25]
[1646210584736,55.03559787,104.36,104.3,31.1679]
[1646210584939,6.0,104.35,104.3,31.1679]
[1646210585136,30.48621026,104.34,104.3,31.1679]
[1646210585342,30.48621026,104.34,104.3,5.0]
[1646210585843,30.48621026,104.34,104.29,2.54904003]
[1646210586039,51.63605171,104.32,104.28,16.54]
[1646210586245,101.76,104.31,104.28,5.0]
[1646210586539,3.03219997,104.3,104.28,5.0]
[1646210586739,6.0,104.29,104.25,14.3857]
[1646210586944,12.369,104.29,104.25,14.3857]
[1646210587239,28.88575642,104.28,104.25,16.93474003]
[1646210587441,28.88575642,104.28,104.23,115.44904003]
[1646210587642,9.03219997,104.27,104.19,122.9169025]
[1646210587844,153.21,104.26,104.19,10.0169025]
[1646210588041,0.19515664,104.25,104.16,14.1198]
[1646210588342,46.53797165,104.23,104.16,14.1198]
[1646210588539,28.88575642,104.21,104.16,14.1198]
[1646210588741,46.53797165,104.19,104.16,14.1198]
[1646210588940,3.03219997,104.18,104.15,299.6]
[1646210589243,3.03219997,104.18,104.16,19.33851278]
[1646210589643,46.53797165,104.19,104.15,313.9984]
[1646210590240,46.53797165,104.19,104.15,324.8447671]
[1646210590441,46.53797165,104.19,104.15,329.8447671]
[1646210590641,46.53797165,104.19,104.15,330.5384]
[1646210591341,6.0,104.22,104.15,330.5384]
[1646210591544,6.0,104.24,104.19,2.54904003]
[1646210591742,6.25,104.24,104.19,2.54904003]
[1646210591942,6.25,104.24,104.18,5.0]
[1646210591943,102.01,104.24,104.18,5.0]
[1646210592145,102.01,104.24,104.18,7.79904003]
[1646210592342,45.57212185,104.23,104.18,7.79904003]
[1646210592644,6.0,104.22,104.19,2.54904003]
[1646210592843,29.85160622,104.21,104.19,2.54904003]
[1646210593043,29.85160622,104.21,104.18,0.25]
[1646210593242,29.85160622,104.21,104.17,14.6465]
[1646210594045,49.6585,104.25,104.17,73.14903965]
[1646210594246,6.0,104.24,104.18,11.54]
[1646210594446,6.0,104.24,104.18,26.1852]
[1646210594648,6.25,104.24,104.18,28.73424003]
[1646210594846,6.25,104.24,104.18,51.32201851]
[1646210595046,60.24304395,104.23,104.19,12.42373228]
[1646210595246,60.24304395,104.23,104.19,12.67373228]
[1646210595447,60.24304395,104.23,104.2,2.54904003]
[1646210595750,60.24304395,104.23,104.2,2.79904003]
[1646210596150,60.24304395,104.23,104.2,0.25]
[1646210596550,60.24304395,104.23,104.19,27.06803228]
[1646210597252,60.24304395,104.23,104.19,14.6443]
[1646210597450,156.00304395,104.23,104.18,41.67681851]
[1646210597650,6.0,104.22,104.17,25.9364]
[1646210598050,6.0,104.22,104.17,30.9364]
[1646210598251,15.18068412,104.21,104.17,30.9364]
[1646210599051,15.18068412,104.21,104.17,26.1864]
[1646210599853,15.18068412,104.21,104.17,14.6464]
[1646210600452,110.94068412,104.21,104.17,0.25]
[1646210600651,101.76,104.2,104.14,11.54]
[1646210600851,159.46,104.2,104.12,34.12777848]
[1646210601054,159.46,104.2,104.12,39.12777848]
[1646210601752,149.04005672,104.19,104.12,16.54]
[1646210601956,101.76,104.18,104.12,16.54]
[1646210602151,110.231,104.18,104.11,25.9447]
[1646210602752,22.14367135,104.17,104.11,82.70341984]
[1646210602951,6.0,104.16,104.11,82.70341984]
[1646210603350,52.9781758,104.15,104.11,82.70341984]
[1646210603950,52.9781758,104.15,104.11,25.9447]
[1646210604551,53.2281758,104.15,104.11,25.9447]
[1646210604951,52.9781758,104.15,104.11,26.1947]
[1646210605154,52.9781758,104.15,104.11,28.74374003]
[1646210605351,52.9781758,104.15,104.12,37.02941527]
[1646210605552,6.0,104.16,104.12,48.81941527]
[1646210605753,47.6928,104.21,104.12,147.1284553]
[1646210605953,51.7992,104.24,104.13,21.2471173]
[1646210606154,51.7992,104.24,104.14,11.54]
[1646210606353,147.5592,104.24,104.14,14.33904003]
[1646210606552,55.94634372,104.23,104.15,48.30125666]
[1646210606776,55.94634372,104.23,104.16,11.54]
[1646210606777,151.70634372,104.23,104.16,11.54]
[1646210606952,151.95634372,104.23,104.16,11.79]
[1646210607153,19.47738435,104.21,104.16,26.1884]
[1646210608153,19.47738435,104.21,104.17,37.02251527]
[1646210608355,19.47738435,104.21,104.17,37.27251527]
[1646210608556,51.7982,104.24,104.17,48.81251527]
[1646210608754,47.9592,104.24,104.17,48.81251527]
[1646210608958,47.9592,104.24,104.17,51.3615553]
[1646210609456,55.34251974,104.23,104.17,51.3615553]
[1646210610757,3.838,104.29,104.17,51.3615553]
[1646210610956,3.838,104.29,104.21,14.3922]
[1646210611156,3.838,104.29,104.21,14.6422]
[1646210611355,3.838,104.29,104.21,17.19124003]
[1646210611554,105.7485,104.3,104.21,17.19124003]
[1646210611757,60.55897504,104.29,104.22,57.1577325]
[1646210611955,6.0,104.28,104.22,57.4077325]
[1646210612155,14.86475303,104.27,104.22,71.7985325]
[1646210612357,14.86475303,104.27,104.22,74.34757253]
[1646210612656,3.836,104.31,104.22,74.34757253]
[1646210613659,55.73290302,104.3,104.22,74.34757253]
[1646210614060,3.836,104.31,104.22,170.10757253]
[1646210614284,23.7197,104.32,104.22,227.31918602]
[1646210614460,3.836,104.33,104.24,95.76]
[1646210614659,49.5366,104.34,104.25,101.76]
[1646210614862,6.0,104.33,104.27,14.3817]
[1646210615060,49.61054478,104.32,104.28,25.30853943]
[1646210615261,49.61054478,104.32,104.28,11.79]
[1646210615464,49.61054478,104.32,104.28,14.33904003]
[1646210616064,49.61054478,104.32,104.28,28.72094003]
[1646210616866,49.61054478,104.32,104.29,13.36057349]
[1646210617064,49.61054478,104.32,104.29,13.61057349]
[1646210617465,49.61054478,104.32,104.29,17.44457349]
[1646210617665,49.61054478,104.32,104.29,4.084]
[1646210617864,6.0,104.33,104.29,4.084]
[1646210618069,6.0,104.36,104.3,3.834]
[1646210618265,6.0,104.36,104.3,4.084]
[1646210618466,46.9576,104.37,104.31,2.54904003]
[1646210618765,51.3971609,104.37,104.31,63.86285162]
[1646210619376,51.3971609,104.37,104.31,14.33904003]
[1646210619668,51.6471609,104.37,104.31,19.33904003]
[1646210620167,51.6471609,104.37,104.31,33.71644003]
[1646210620369,147.4071609,104.37,104.31,16.79]
[1646210620576,6.0,104.36,104.29,11.54]
[1646210620769,6.25,104.36,104.29,11.79]
[1646210621570,24.02656717,104.35,104.29,60.52347452]
[1646210621792,24.02656717,104.35,104.29,11.79]
[1646210621793,6.0,104.34,104.29,11.79]
[1646210621991,6.0,104.34,104.29,11.54]
[1646210622193,6.25,104.34,104.28,5.0]
[1646210622691,51.3971609,104.33,104.28,55.31368961]
[1646210623291,51.3971609,104.33,104.28,5.0]
[1646210623492,51.6471609,104.33,104.27,25.9233]
[1646210623691,6.0,104.32,104.27,25.9233]
[1646210623891,6.0,104.32,104.27,11.54]
[1646210624093,6.25,104.32,104.26,8.835]
[1646210624391,24.02656717,104.31,104.26,8.835]
[1646210624592,46.88937212,104.29,104.26,8.835]
[1646210624791,6.0,104.3,104.26,31.77112921]
[1646210624993,6.25,104.3,104.26,26.77112921]
[1646210625191,0.25,104.3,104.26,22.93612921]
[1646210625393,6.0,104.33,104.26,22.93612921]
[1646210625591,6.0,104.33,104.26,39.87026924]
[1646210625800,45.7028726,104.33,104.28,47.99014272]
[1646210626193,45.7028726,104.33,104.28,48.24014272]
[1646210627095,45.9528726,104.33,104.28,48.24014272]
[1646210627293,45.7028726,104.33,104.28,48.24014272]
[1646210627593,45.7028726,104.33,104.28,50.78918275]
[1646210628193,6.0,104.34,104.28,50.78918275]
[1646210628395,70.3160602,104.4,104.28,80.54568275]
[1646210628396,6.0,104.35,104.28,80.54568275]
[1646210628593,3.834,104.39,104.28,101.61946672]
[1646210628795,201.8569,104.4,104.28,101.61946672]
[1646210628994,120.1892,104.38,104.29,5.0]
[1646210629194,50.33715081,104.36,104.3,22.93612921]
[1646210629395,50.33715081,104.36,104.3,25.73516924]
[1646210629594,50.33715081,104.36,104.31,2.54904003]
[1646210629794,50.33715081,104.36,104.31,2.79904003]
[1646210630194,50.33715081,104.36,104.32,44.49441336]
[1646210630393,50.33715081,104.36,104.32,47.29345339]
[1646210630594,50.33715081,104.36,104.32,2.79904003]
[1646210631696,50.58715081,104.36,104.3,80.1716016]
[1646210631896,25.08657726,104.34,104.3,14.08904003]
[1646210632097,25.33657726,104.34,104.29,5.0]
[1646210632294,25.33657726,104.34,104.28,14.08904003]
[1646210633098,6.0,104.33,104.28,14.08904003]
[1646210633296,159.46,104.33,104.27,5.0]
[1646210633498,159.46,104.33,104.26,6.38304003]
[1646210633698,63.7,104.33,104.25,5.0]
[1646210633898,159.46,104.33,104.25,5.0]
[1646210634096,50.14766418,104.32,104.25,5.0]
[1646210634296,6.0,104.31,104.25,5.0]
[1646210634795,6.25,104.31,104.25,5.0]
[1646210635197,102.01,104.31,104.25,5.25]
[1646210635495,50.14766418,104.28,104.25,5.0]
[1646210635695,25.27606389,104.26,104.25,5.0]
[1646210636098,25.27606389,104.26,104.22,3.836]
[1646210636499,25.27606389,104.26,104.21,32.61378397]
[1646210636500,25.27606389,104.26,104.21,11.54]
[1646210636699,25.52606389,104.26,104.22,2.54904003]
[1646210637102,25.52606389,104.26,104.2,25.77904003]
[1646210637103,6.0,104.25,104.2,25.77904003]
[1646210637301,50.14766418,104.24,104.2,21.94204003]
[1646210637500,50.14766418,104.24,104.2,16.94204003]
[1646210638603,50.14766418,104.24,104.2,17.19204003]
[1646210639000,153.21,104.24,104.18,68.52197126]
[1646210639201,153.21,104.22,104.09,14.1752]
[1646210639401,102.35965847,104.21,104.11,11.54]
[1646210639602,102.60965847,104.21,104.11,11.54]
[1646210639800,160.05965847,104.21,104.11,11.54]
[1646210640200,174.46565847,104.21,104.1,49.67793849]
[1646210640602,174.46565847,104.21,104.11,6.0]
[1646210641104,173.866,104.21,104.11,20.4059]
[1646210641301,173.866,104.21,104.11,20.6559]
[1646210641502,3.84,104.2,104.11,20.6559]
[1646210641709,95.76,104.18,104.11,20.4059]
[1646210641902,101.76,104.17,104.11,14.4059]
[1646210642102,102.01,104.17,104.11,14.4059]
[1646210643103,6.25,104.17,104.11,60.2642865]
[1646210643604,6.0,104.16,104.11,60.2642865]
[1646210643802,0.25,104.16,104.11,60.2642865]
[1646210644002,0.25,104.16,104.11,60.5142865]
[1646210644403,0.25,104.16,104.11,14.6559]
[1646210645108,159.21,104.19,104.11,14.6559]
[1646210645307,159.21,104.19,104.12,53.8646083]
[1646210645507,159.21,104.19,104.12,54.1146083]
[1646210646007,159.21,104.19,104.12,0.25]
[1646210646211,173.6183,104.19,104.1,5.0]
[1646210646409,4.18459633,104.18,104.07,112.9]
[1646210646608,153.21,104.16,104.05,11.54]
[1646210646810,154.71267508,104.14,104.01,14.3681]
[1646210647009,63.45,104.13,104.01,75.75424037]
[1646210647209,3.843,104.12,104.01,75.75424037]
[1646210647410,6.0,104.11,104.01,75.75424037]
[1646210647610,3.843,104.1,104.01,61.38614037]
[1646210647809,6.0,104.09,104.01,61.38614037]
[1646210648008,6.0,104.09,104.01,80.3143974]
[1646210648209,6.25,104.09,104.01,80.3143974]
[1646210648409,0.25,104.09,104.03,5.0]
[1646210648610,0.25,104.09,104.04,55.79201019]
[1646210649209,6.25,104.12,104.04,55.79201019]
[1646210649411,6.25,104.12,104.01,11.54]
[1646210649611,3.843,104.11,104.01,11.54]
[1646210649811,6.0,104.1,104.01,11.54]
[1646210650215,6.25,104.1,104.01,16.79]
[1646210650413,6.25,104.1,104.02,46.18176207]
[1646210650615,6.0,104.09,104.02,46.43176207]
[1646210650813,0.25,104.09,104.02,57.97176207]
[1646210651416,0.25,104.09,104.02,62.97176207]
[1646210651912,6.0,104.11,104.02,62.97176207]
[1646210652116,6.25,104.11,104.02,51.43176207]
[1646210652515,102.01,104.11,104.02,51.43176207]
[1646210652715,102.01,104.11,104.02,46.43176207]
[1646210653314,159.46,104.11,104.02,46.43176207]
[1646210653515,3.843,104.1,104.02,46.43176207]
[1646210653725,6.0,104.09,104.02,0.25]
[1646210653919,6.25,104.09,104.0,31.2092]
[1646210654515,0.25,104.09,104.0,26.2092]
[1646210654719,0.25,104.09,104.01,49.86457262]
[1646210654916,0.25,104.09,104.01,50.11457262]
[1646210655118,6.25,104.1,104.01,50.11457262]
[1646210656318,57.45,104.09,104.01,50.11457262]
[1646210656520,6.0,104.08,104.01,50.11457262]
[1646210656918,6.25,104.08,104.01,50.11457262]
[1646210657317,6.25,104.08,104.01,55.11457262]
[1646210657518,6.0,104.1,104.01,76.07257262]
[1646210657718,6.0,104.1,104.03,5.0]
[1646210657918,6.0,104.1,104.04,58.5868903]
[1646210658118,6.0,104.1,104.04,58.8368903]
[1646210658918,6.25,104.1,104.04,58.8368903]
[1646210659720,63.7,104.1,104.04,58.8368903]
[1646210659919,6.25,104.1,104.04,58.8368903]
[1646210660320,47.3562,104.13,104.04,73.2509903]
[1646210660521,47.3562,104.13,104.04,87.34003033]
[1646210661121,47.3562,104.13,104.05,5.0]
[1646210661322,47.3562,104.13,104.06,49.68296309]
[1646210661523,47.3562,104.13,104.06,49.93296309]
[1646210661724,6.0,104.12,104.06,49.93296309]
[1646210662220,6.25,104.12,104.06,75.88466309]
[1646210663223,6.25,104.12,104.06,64.34466309]
[1646210664228,0.25,104.12,104.06,64.34466309]
[1646210664432,6.0,104.14,104.06,64.34466309]
[1646210664433,6.25,104.14,104.06,64.34466309]
[1646210664631,95.76,104.13,104.06,49.93296309]
[1646210664833,101.76,104.12,104.06,49.93296309]
[1646210665233,6.25,104.12,104.06,49.93296309]
[1646210666636,6.0,104.11,104.06,49.93296309]
[1646210666841,0.25,104.11,104.06,49.93296309]
[1646210667237,6.0,104.13,104.06,49.93296309]
[1646210667437,6.0,104.14,104.06,49.93296309]
[1646210667640,6.0,104.14,104.06,61.47296309]
[1646210667837,6.0,104.14,104.06,75.88536309]
[1646210668736,6.25,104.14,104.06,75.88536309]
[1646210670945,102.01,104.14,104.06,75.88536309]
[1646210672845,57.45,104.13,104.06,75.88536309]
[1646210673045,101.76,104.12,104.06,49.68296309]
[1646210673245,102.01,104.12,104.06,49.68296309]
[1646210674450,159.46,104.12,104.04,14.4151]
[1646210674648,0.11265115,104.11,104.02,25.9576]
[1646210674850,165.839,104.12,104.02,14.4176]
[1646210675447,179.8948,104.12,104.02,69.00447397]
[1646210676448,10.02833468,104.12,104.02,198.56980982]
[1646210676649,23.4874,104.13,104.06,14.4121]
[1646210676849,5.01341237,104.16,104.07,145.86416737]
[1646210677051,3.842,104.17,104.1,50.84621949]
[1646210677249,57.45,104.2,104.11,11.54]
[1646210677448,157.05,104.19,104.11,14.33904003]
[1646210677853,153.21,104.19,104.11,14.33904003]
[1646210678052,5.00851502,104.21,104.12,47.76239587]
[1646210678254,3.84,104.2,104.12,48.01239587]
[1646210678457,3.84,104.2,104.12,59.55239587]
[1646210678958,3.84,104.2,104.12,11.79]
[1646210679157,3.84,104.2,104.1,14.4066]
[1646210679356,4.09,104.2,104.1,26.1966]
[1646210679559,63.45,104.19,104.1,26.1966]
[1646210679756,3.84,104.18,104.1,26.1966]
[1646210679957,6.0,104.17,104.1,75.056649]
[1646210680156,6.25,104.17,104.1,75.056649]
[1646210681160,6.0,104.16,104.1,80.056649]
[1646210681358,0.25,104.16,104.1,31.1966]
[1646210682063,101.76,104.18,104.1,31.1966]
[1646210682064,6.0,104.18,104.1,31.1966]
[1646210682261,6.0,104.2,104.1,31.1966]
[1646210682464,6.0,104.2,104.11,73.51689973]
[1646210682663,100.77175703,104.19,104.11,85.30689973]
[1646210682865,6.0,104.18,104.11,85.30689973]
[1646210683463,6.25,104.18,104.11,85.30689973]
[1646210683664,6.25,104.18,104.11,26.196]
[1646210684568,0.25,104.18,104.11,26.196]
[1646210684766,5.26175703,104.19,104.12,66.2632471]
[1646210684966,0.25,104.19,104.12,78.0532471]
[1646210685167,22.8076,104.21,104.12,78.0532471]
[1646210685366,5.01107453,104.2,104.12,26.1942]
[1646210685769,5.01107453,104.2,104.12,28.74324003]
[1646210686172,26.3668,104.23,104.12,129.50324003]
[1646210686373,6.0,104.22,104.13,50.27796132]
[1646210686570,6.0,104.22,104.14,11.54]
[1646210686772,6.0,104.23,104.16,57.62376781]
[1646210686971,6.0,104.23,104.16,69.41376781]
[1646210687174,6.0,104.24,104.16,11.79]
[1646210688072,6.0,104.24,104.16,83.06175991]
[1646210690174,6.25,104.24,104.16,83.06175991]
[1646210690374,102.01,104.24,104.16,82.81175991]
[1646210690574,159.46,104.24,104.14,25.9413]
[1646210690774,0.16049929,104.23,104.13,2.54904003]
[1646210691177,3.839,104.22,104.13,2.54904003]
[1646210691375,6.16049929,104.21,104.13,2.54904003]
[1646210691575,6.25,104.21,104.14,49.33731159]
[1646210691776,6.25,104.21,104.14,63.73891159]
[1646210691978,6.0,104.22,104.15,98.30904003]
[1646210692176,6.0,104.22,104.16,69.29931935]
[1646210692380,48.6314,104.3,104.16,95.40365938]
[1646210692577,48.6314,104.3,104.18,98.1058879]
[1646210692782,48.6314,104.3,104.19,150.10181761]
[1646210692977,48.6314,104.3,104.19,174.33674097]
[1646210693178,48.6314,104.3,104.2,2.54904003]
[1646210693378,48.6314,104.3,104.21,55.37821166]
[1646210693580,6.0,104.29,104.21,55.62821166]
[1646210693779,6.0,104.29,104.21,58.17725169]
[1646210693980,6.25,104.29,104.21,72.56675169]
[1646210694386,6.0,104.29,104.21,72.56675169]
[1646210695583,6.25,104.29,104.21,72.56675169]
[1646210695883,6.25,104.29,104.21,168.32675169]
[1646210696083,6.0,104.28,104.21,168.32675169]
[1646210696284,6.0,104.31,104.21,168.32675169]
[1646210696484,6.0,104.31,104.21,86.66175169]
[1646210696685,6.0,104.33,104.21,86.66175169]
[1646210696906,3.836,104.32,104.21,86.66175169]
[1646210697109,6.0,104.31,104.22,5.0]
[1646210697306,6.0,104.31,104.23,25.9287]
[1646210697511,6.25,104.31,104.23,77.35439262]
[1646210698208,6.25,104.31,104.23,26.1787]
[1646210699207,159.46,104.31,104.23,26.1787]
[1646210700007,159.46,104.31,104.23,11.79]
[1646210700210,159.46,104.31,104.23,0.25]
[1646210700407,3.96941653,104.3,104.2,2.54904003]
[1646210700606,153.21,104.28,104.2,0.25]
[1646210700807,6.0,104.27,104.2,0.25]
[1646210701207,102.01,104.27,104.2,0.25]
[1646210701407,102.01,104.27,104.21,3.837]
[1646210701608,102.01,104.27,104.21,4.087]
[1646210701810,102.01,104.27,104.21,0.25]
[1646210702210,159.46,104.27,104.21,0.25]
[1646210702612,159.46,104.27,104.18,3.837]
[1646210702814,167.14199683,104.27,104.17,8.837]
[1646210703012,0.1604288,104.26,104.17,3.837]
[1646210703210,0.1604288,104.26,104.14,65.48938977]
[1646210703414,167.14199683,104.27,104.14,65.48938977]
[1646210704014,204.63099683,104.27,104.15,14.3999]
[1646210704216,204.63099683,104.27,104.16,3.838]
[1646210704413,209.63099683,104.27,104.16,57.70353418]
[1646210704914,208.18223936,104.27,104.16,57.70353418]
[1646210705115,205.786,104.27,104.16,57.70353418]
[1646210705318,200.786,104.27,104.16,57.70353418]
[1646210706116,200.786,104.27,104.16,83.64243418]
[1646210706518,196.949,104.27,104.16,83.64243418]
[1646210706916,196.92292491,104.27,104.16,83.64243418]
[1646210707118,196.92292491,104.27,104.16,86.19147421]
[1646210707318,196.92292491,104.27,104.16,82.35347421]
[1646210708018,182.52342491,104.27,104.16,82.35347421]
[1646210708219,182.52342491,104.27,104.18,56.32703547]
[1646210708423,182.52342491,104.27,104.18,56.57703547]
[1646210708622,29.06342491,104.27,104.18,56.57703547]
[1646210708821,29.06342491,104.27,104.2,42.92287682]
[1646210709022,5.97392491,104.27,104.2,43.17287682]
[1646210709221,6.0,104.29,104.2,54.71287682]